bitfinex/quotes_ETHUSD_20250314
["timestamp","ask_amount","ask_price","bid_price","bid_amount"]
[1741947109046,5.088,1895.3,1895.2,5.27648]
[1741947109245,5.088,1895.3,1895.1,6.06526]
[1741947109991,5.088,1895.3,1895.1,11.34182]
[1741947110175,5.088,1895.3,1895.2,5.27648]
[1741947111695,6.1988,1895.3,1895.1,5.27656]
[1741947112699,5.088,1895.3,1895.2,5.27648]
[1741947114032,5.088,1895.3,1895.1,10.55334]
[1741947114322,5.088,1895.3,1895.1,5.27665]
[1741947114890,0.7936,1895.2,1895.0,5.27702]
[1741947115200,1.68139585,1895.2,1895.0,10.55404]
[1741947115410,0.7936,1895.2,1895.0,10.55404]
[1741947115916,8.08435855,1895.3,1895.1,5.27658]
[1741947116284,5.088,1895.3,1895.2,5.27648]
[1741947117210,5.088,1895.3,1895.1,5.27658]
[1741947117412,6.02,1895.4,1895.3,5.2762]
[1741947117593,11.108,1895.4,1895.3,5.2762]
[1741947117917,12.51843586,1895.4,1895.3,5.37757027]
[1741947118104,11.108,1895.4,1895.3,5.37757027]
[1741947119182,14.108,1895.4,1895.3,5.37757027]
[1741947120310,14.108,1895.4,1895.3,0.10137027]
[1741947120516,14.108,1895.4,1895.2,5.2763]
[1741947120719,8.088,1895.4,1895.3,0.0946852]
[1741947120917,8.088,1895.4,1895.2,5.2763]
[1741947121112,8.088,1895.4,1895.3,5.2762]
[1741947121313,8.088,1895.4,1895.3,5.3708852]
[1741947122114,8.088,1895.4,1895.3,0.0946852]
[1741947122312,8.088,1895.4,1895.3,5.2762]
[1741947122518,8.079,1895.4,1895.3,5.3708852]
[1741947123719,15.28346586,1895.4,1895.3,0.0946852]
[1741947123906,0.821,1895.2,1894.7,0.7721]
[1741947124087,3.0,1895.1,1894.8,5.27752]
[1741947124288,5.094,1895.0,1894.8,5.36606048]
[1741947124624,5.094,1895.0,1894.9,5.27732]
[1741947124999,5.094,1895.0,1894.9,5.3657675]
[1741947125313,5.094,1895.0,1894.9,0.0884475]
[1741947125522,5.094,1895.0,1894.8,10.55476]
[1741947125726,5.094,1895.0,1894.9,0.0884475]
[1741947125890,5.094,1895.0,1894.9,5.27732]
[1741947126223,5.094,1895.0,1894.9,0.0884475]
[1741947126525,5.094,1895.0,1894.9,5.27732]
[1741947126744,5.094,1895.0,1894.9,5.3657675]
[1741947128219,5.094,1895.0,1894.9,0.0884475]
[1741947128623,5.094,1895.0,1894.8,5.27736]
[1741947128922,5.094,1895.0,1894.7,0.7721]
[1741947128923,5.094,1895.0,1894.9,0.08859109]
[1741947129133,6.43109,1895.0,1894.7,6.04996]
[1741947129424,6.43109,1895.0,1894.8,0.08873176]
[1741947129605,9.42744855,1895.0,1894.8,0.08873176]
[1741947130899,8.09035855,1895.0,1894.8,5.36632176]
[1741947131094,8.09035855,1895.0,1894.8,0.08873176]
[1741947131299,13.36744855,1895.0,1894.8,0.08873176]
[1741947131534,8.09035855,1895.0,1894.8,0.08873176]
[1741947131959,9.07802,1894.9,1894.8,0.08873176]
[1741947132267,3.0,1894.7,1894.4,5.27864]
[1741947132416,5.083,1894.6,1894.4,5.27864]
[1741947132754,5.083,1894.6,1894.4,10.55721]
[1741947133043,5.083,1894.6,1894.5,5.27843]
[1741947135244,5.083,1894.6,1894.5,6.02953]
[1741947135531,5.083,1894.6,1894.5,7.16034]
[1741947136032,5.081,1894.8,1894.6,5.27811]
[1741947136232,5.081,1894.8,1894.5,0.7511]
[1741947137119,10.35866,1894.8,1894.5,0.7511]
[1741947137319,5.081,1894.8,1894.5,6.02941]
[1741947137552,7.54624186,1894.8,1894.5,5.27831]
[1741947138232,13.59892186,1894.8,1894.4,6.08856]
[1741947138550,13.59892186,1894.8,1894.5,5.27842]
[1741947138721,5.081,1894.8,1894.7,5.27788]
[1741947139052,5.078,1894.8,1894.5,5.27843]
[1741947139288,5.078,1894.8,1894.5,10.55666]
[1741947139658,5.078,1894.8,1894.6,5.27808]
[1741947141058,5.081,1894.7,1894.6,5.27808]
[1741947141960,5.081,1894.7,1894.6,7.125311]
[1741947144061,3.0,1895.0,1894.8,5.2776]
[1741947144281,5.075,1894.9,1894.8,5.2776]
[1741947144473,3.0,1895.0,1894.8,5.2776]
[1741947144780,5.075,1894.9,1894.8,5.2776]
[1741947144935,5.074,1894.9,1894.7,5.27784]
[1741947145137,5.074,1894.9,1894.8,0.08061258]
[1741947145549,5.074,1894.9,1894.8,5.35821258]
[1741947145944,2.99635855,1895.1,1895.0,5.27704]
[1741947146148,8.06835855,1895.1,1895.0,5.35737125]
[1741947146349,5.072,1895.1,1895.0,5.35737125]
[1741947146549,12.24272844,1895.2,1895.0,0.08033125]
[1741947146747,17.46,1895.3,1895.2,5.27648]
[1741947146970,8.4744134,1895.7,1895.5,5.27547]
[1741947147157,8.07735855,1895.7,1895.6,0.07945355]
[1741947147677,9.01635855,1895.8,1895.6,0.07945355]
[1741947147837,6.02,1895.8,1895.7,5.27509]
[1741947148040,5.079,1895.8,1895.7,5.27509]
[1741947148272,5.079,1895.8,1895.7,0.07910858]
[1741947148771,5.079,1895.8,1895.7,0.0785703]
[1741947148958,5.079,1895.8,1895.6,6.07663]
[1741947149149,5.079,1895.8,1895.7,0.0785703]
[1741947149349,5.079,1895.8,1895.6,6.07663]
[1741947149542,5.079,1895.8,1895.7,0.0785703]
[1741947149743,5.079,1895.8,1895.6,6.07663]
[1741947149946,5.079,1895.8,1895.7,0.0785703]
[1741947150144,5.079,1895.8,1895.6,6.07663]
[1741947150347,5.079,1895.8,1895.7,0.0785703]
[1741947150541,5.079,1895.8,1895.6,6.07663]
[1741947150747,5.079,1895.8,1895.7,0.0785703]
[1741947150980,5.079,1895.8,1895.6,6.07663]
[1741947151187,5.079,1895.8,1895.7,0.0785703]
[1741947151358,5.079,1895.8,1895.6,6.07663]
[1741947151543,5.079,1895.8,1895.7,0.0785703]
[1741947151741,11.86475855,1895.8,1895.4,5.2758]
[1741947151983,17.64760855,1895.8,1895.5,0.07885142]
[1741947152386,17.64760855,1895.8,1895.4,5.2758]
[1741947152678,17.64760855,1895.8,1895.5,0.07874246]
[1741947153068,10.2118301,1896.0,1895.7,5.27509]
[1741947153258,5.077,1895.9,1895.7,5.27509]
[1741947153458,5.077,1895.9,1895.8,0.0783208]
[1741947154150,9.80575855,1896.0,1895.8,0.0783208]
[1741947154482,5.076,1895.9,1895.8,0.0783208]
[1741947154865,5.076,1895.9,1895.6,5.27514]
[1741947155260,5.076,1895.9,1895.7,5.35357901]
[1741947155472,5.076,1895.9,1895.7,0.07850901]
[1741947155787,5.076,1895.9,1895.6,6.410436]
[1741947155974,5.076,1895.9,1895.7,0.07850901]
[1741947156175,5.076,1895.9,1895.6,11.685646]
[1741947156485,5.076,1895.9,1895.7,0.07850901]
[1741947156860,5.076,1895.9,1895.6,6.410436]
[1741947157056,5.076,1895.9,1895.8,0.07836847]
[1741947157587,5.076,1895.9,1895.8,5.35317847]
[1741947158091,6.02,1896.0,1895.9,5.27453]
[1741947158260,5.068,1896.0,1895.9,5.27453]
[1741947158469,5.068,1896.0,1895.9,5.35221119]
[1741947158655,5.068,1896.0,1895.9,0.07768119]
[1741947159057,5.068,1896.0,1895.8,6.03547]
[1741947159260,5.068,1896.0,1895.9,0.07768119]
[1741947159686,5.068,1896.0,1895.8,7.23062936]
[1741947159884,5.068,1896.0,1895.9,0.07768119]
[1741947160258,5.068,1896.0,1895.8,6.46992936]
[1741947160461,5.068,1896.0,1895.9,0.07768119]
[1741947160660,8.06435855,1896.0,1895.9,0.07768119]
[1741947160856,8.06435855,1896.0,1895.7,11.1909336]
[1741947161076,8.06435855,1896.0,1895.9,0.07768119]
[1741947161277,8.06435855,1896.0,1895.8,0.07782171]
[1741947161494,3.40643912,1896.1,1895.9,5.35211119]
[1741947161674,5.067,1896.0,1895.9,5.35211119]
[1741947162065,5.067,1896.0,1895.8,6.40163553]
[1741947162362,5.067,1896.0,1895.9,0.07768119]
[1741947162669,5.067,1896.0,1895.7,5.27486]
[1741947163196,8.06335855,1896.0,1895.8,0.07760249]
[1741947165005,5.067,1896.0,1895.9,5.27453]
[1741947165161,5.067,1896.0,1895.9,5.35192336]
[1741947165362,5.067,1896.0,1895.9,6.4145807]
[1741947166361,5.067,1896.0,1895.9,7.1973807]
[1741947167301,8.067,1896.0,1895.9,7.1973807]
[1741947169199,8.067,1896.0,1895.9,6.4145807]
[1741947169501,8.067,1896.0,1895.9,0.07739336]
[1741947169803,8.067,1896.0,1895.9,5.27453]
[1741947170007,8.067,1896.0,1895.9,5.35165736]
[1741947170166,3.0,1896.0,1895.9,5.35165736]
[1741947170362,8.055,1896.0,1895.9,5.35165736]
[1741947170567,8.055,1896.0,1895.9,6.4142861]
[1741947171508,5.055,1896.0,1895.9,6.4142861]
[1741947171660,23.88188771,1896.2,1896.0,5.274]
[1741947171858,5.052,1896.1,1896.0,5.274]
[1741947172063,23.48,1896.2,1896.0,5.274]
[1741947172286,28.532,1896.2,1896.1,5.80138]
[1741947172996,11.072,1896.2,1896.1,0.5274]
[1741947173290,11.072,1896.2,1896.0,5.274]
[1741947173483,5.052,1896.2,1896.0,5.274]
[1741947175970,8.052,1896.2,1896.1,5.27398]
[1741947176823,3.0,1896.2,1896.1,5.27398]
[1741947176998,8.047,1896.2,1896.0,5.274]
[1741947177201,8.047,1896.2,1896.0,11.684173]
[1741947177496,3.0,1896.1,1895.9,0.8124]
[1741947177689,8.2741,1896.1,1895.7,11.30754]
[1741947178064,8.2741,1896.1,1895.8,0.07713179]
[1741947178799,5.27429,1896.0,1895.8,0.07713179]
[1741947179001,0.7639,1895.9,1895.8,0.07713179]
[1741947179294,0.7639,1895.9,1895.6,5.27523]
[1741947179496,5.046,1895.8,1895.6,5.27523]
[1741947180177,5.046,1895.8,1895.6,10.55042]
[1741947180395,5.046,1895.8,1895.7,5.27509]
[1741947184507,5.046,1895.8,1895.7,6.330118]
[1741947184675,9.02,1896.0,1895.9,5.27453]
[1741947184875,14.057,1896.0,1895.9,5.27453]
[1741947185090,8.037,1896.0,1895.8,5.27479]
[1741947185270,5.037,1896.0,1895.8,5.27479]
[1741947186805,5.037,1896.0,1895.8,10.54949]
[1741947187104,5.037,1896.0,1895.9,5.27453]
[1741947189113,6.02,1896.2,1896.1,5.27398]
[1741947189291,11.052,1896.2,1896.1,5.27398]
[1741947189694,17.451,1896.4,1896.2,5.27359]
[1741947189889,17.451,1896.4,1896.3,6.06092]
[1741947190089,6.02,1896.6,1896.5,5.27287]
[1741947190436,6.02,1896.6,1896.5,6.327471]
[1741947190717,5.038,1896.7,1896.6,6.0515]
[1741947191232,5.038,1896.9,1896.7,5.27228]
[1741947191435,5.038,1896.9,1896.7,5.27214]
[1741947191788,5.038,1896.9,1896.8,5.27203]
[1741947193131,5.038,1896.9,1896.8,6.40157566]
[1741947193592,17.451,1897.1,1897.0,5.27148]
[1741947193794,17.451,1897.1,1897.0,5.34628714]
[1741947195110,17.451,1897.1,1897.0,0.07480714]
[1741947195499,17.451,1897.1,1896.8,6.326327]
[1741947195695,31.74232,1897.1,1897.0,0.07469158]
[1741947195926,6.09368,1897.0,1896.9,0.07483194]
[1741947196100,6.09368,1897.0,1896.6,5.27247]
[1741947196299,6.09368,1897.0,1896.6,10.54487]
[1741947196500,6.09368,1897.0,1896.7,0.0751127]
[1741947196696,3.0,1897.0,1896.8,5.27192]
[1741947196999,3.0,1897.0,1896.9,0.07499509]
[1741947197215,3.0,1897.0,1896.8,5.27192]
[1741947197419,3.0,1897.0,1896.9,0.07499509]
[1741947197619,14.44206455,1897.0,1896.6,5.27252]
[1741947197824,0.8253,1896.9,1896.7,5.34758585]
[1741947198023,5.044,1896.8,1896.7,0.07527585]
[1741947198222,5.044,1896.8,1896.6,10.54491]
[1741947198410,5.044,1896.8,1896.7,0.07525546]
[1741947198615,5.044,1896.8,1896.6,5.27239]
[1741947198809,5.044,1896.8,1896.7,0.07525546]
[1741947199012,5.044,1896.8,1896.6,5.27239]
[1741947199366,5.044,1896.8,1896.7,0.07528265]
[1741947199534,3.0,1897.0,1896.7,5.34759265]
[1741947199837,5.043,1896.8,1896.7,5.27231]
[1741947200742,5.043,1896.8,1896.6,5.27256]
[1741947200943,5.72734,1897.0,1896.7,5.27231]
[1741947201148,8.045,1897.0,1896.9,5.27175]
[1741947201748,11.9906,1897.0,1896.7,5.2721]
[1741947201963,11.1966,1897.0,1896.7,5.2721]
[1741947203538,16.46808,1897.0,1896.7,5.2721]
[1741947204039,11.1966,1897.0,1896.7,5.2721]
[1741947205336,11.1966,1897.0,1896.7,10.54424]
[1741947205542,11.1966,1897.0,1896.7,5.2721]
[1741947205718,8.045,1897.0,1896.8,5.27201]
[1741947205919,8.045,1897.0,1896.7,11.34592]
[1741947206235,8.045,1897.0,1896.8,5.34380669]
[1741947206534,8.045,1897.0,1896.8,5.34385669]
[1741947206735,8.045,1897.0,1896.9,5.27175]
[1741947207109,8.045,1897.0,1896.9,0.07176632]
[1741947207807,8.045,1897.0,1896.8,5.27195]
[1741947208054,8.045,1897.0,1896.9,0.07176632]
[1741947208434,8.045,1897.0,1896.8,5.27195]
[1741947208706,8.045,1897.0,1896.9,0.0717324]
[1741947209413,8.045,1897.0,1896.8,5.27191]
[1741947209747,8.045,1897.0,1896.9,0.0717324]
[1741947210052,8.045,1897.0,1896.8,5.27195]
[1741947210255,8.045,1897.0,1896.9,0.0717324]
[1741947210413,8.045,1897.0,1896.9,5.3434824]
[1741947210610,5.045,1897.0,1896.9,5.3434824]
[1741947212248,5.045,1897.0,1896.9,0.0717324]
[1741947212652,5.045,1897.0,1896.5,5.27286]
[1741947212653,9.53212586,1897.0,1896.6,5.27242]
[1741947212861,3.8304,1896.6,1896.1,5.27395]
[1741947213013,2.99635855,1896.4,1896.1,5.27395]
[1741947213408,2.99635855,1896.4,1896.2,5.27368]
[1741947213614,3.0,1896.4,1896.3,5.27342]
[1741947213825,3.0,1896.4,1896.2,5.27368]
[1741947214027,3.0,1896.5,1896.3,5.27342]
[1741947214402,6.8504,1896.6,1896.3,6.07292]
[1741947214403,5.046,1896.4,1896.3,6.07292]
[1741947218142,5.046,1896.4,1896.2,5.2736]
[1741947218143,5.046,1896.4,1896.1,6.0734]
[1741947218349,5.8764,1896.4,1896.1,5.2739]
[1741947219848,5.046,1896.4,1895.9,6.07396]
[1741947220011,5.046,1896.4,1896.2,5.27361]
[1741947220545,5.046,1896.4,1896.2,5.27352]
[1741947220916,5.046,1896.4,1896.2,5.27343]
[1741947221119,3.82675855,1896.6,1896.2,5.2735]
[1741947221319,5.05,1896.4,1896.2,5.2735]
[1741947223154,5.05,1896.4,1896.3,0.0677031]
[1741947223959,8.05,1896.4,1896.3,0.0677031]
[1741947224685,8.05,1896.4,1896.3,5.3411231]
[1741947225055,8.05,1896.4,1896.3,0.0677031]
[1741947225592,8.05,1896.4,1896.1,5.27393]
[1741947225887,8.05,1896.4,1896.2,0.0681957]
[1741947226398,8.05,1896.4,1896.2,5.3418457]
[1741947227450,5.05,1896.4,1896.2,0.0681957]
[1741947228384,5.05,1896.4,1896.2,5.3418857]
[1741947228685,5.05,1896.4,1896.2,0.0681957]
[1741947229597,10.32318,1896.4,1896.2,0.0681957]
[1741947229769,14.87914355,1896.4,1896.2,0.0681957]
[1741947230299,6.06203,1896.3,1896.0,5.27419]
[1741947230607,0.7886,1896.3,1896.0,5.27419]
[1741947231101,0.7886,1896.3,1896.1,0.06599563]
[1741947232798,3.7886,1896.3,1896.1,0.06599563]
[1741947233680,9.06202,1896.3,1896.1,0.06599563]
[1741947234773,9.46810177,1896.3,1896.1,0.06599563]
[1741947235209,11.27005855,1896.2,1896.1,0.06599563]
[1741947235385,17.29005855,1896.2,1896.1,0.06599563]
[1741947235594,8.27408,1896.1,1895.7,6.09656]
[1741947235901,5.037,1896.0,1895.7,6.09656]
[1741947237204,5.037,1896.0,1895.7,11.37147]
[1741947237382,5.037,1896.0,1895.7,6.09651]
[1741947237906,5.037,1896.0,1895.8,0.06641716]
[1741947238403,8.03335855,1896.0,1895.8,0.06641716]
[1741947238801,13.30763855,1896.0,1895.8,0.06641716]
[1741947239005,8.03335855,1896.0,1895.8,0.06641716]
[1741947239671,8.03335855,1896.0,1895.7,0.8216]
[1741947239873,8.03335855,1896.0,1895.7,6.09654]
[1741947240083,8.03335855,1896.0,1895.8,5.34145062]
[1741947240405,5.037,1896.0,1895.8,5.34145062]
[1741947240574,5.037,1896.0,1895.8,5.34136062]
[1741947243685,5.024,1896.0,1895.8,1.21046468]
[1741947244003,6.02,1896.2,1895.9,10.54864]
[1741947244205,5.025,1896.1,1896.0,5.27406]
[1741947244526,5.025,1896.1,1896.0,5.34043959]
[1741947245117,6.02,1896.2,1896.1,5.27398]
[1741947245315,5.023,1896.2,1896.1,10.54796]
[1741947245530,5.023,1896.2,1896.1,10.6141991]
[1741947246133,17.447,1896.4,1896.2,5.27343]
[1741947246134,5.023,1896.3,1896.2,5.27343]
[1741947246425,17.447,1896.4,1896.3,5.27342]
[1741947246613,22.471,1896.4,1896.3,5.27342]
[1741947246813,22.471,1896.4,1896.3,5.33937815]
[1741947247916,22.471,1896.4,1896.3,0.06595815]
[1741947249128,25.471,1896.4,1896.3,0.06595815]
[1741947249623,25.471,1896.4,1896.3,5.33937815]
[1741947249823,25.465,1896.4,1896.3,5.33937815]
[1741947250625,3.0,1896.4,1896.3,7.16565896]
[1741947251037,3.0,1896.4,1896.3,6.40065896]
[1741947251236,3.0,1896.4,1896.3,0.06595815]
[1741947252135,3.0,1896.4,1896.3,5.33937815]
[1741947252456,3.0,1896.4,1896.3,0.06595815]
[1741947253371,3.7828,1896.4,1896.3,0.06595815]
[1741947253727,3.7828,1896.4,1896.1,10.54774]
[1741947254063,3.7828,1896.4,1896.3,0.06564707]
[1741947254223,3.7828,1896.4,1896.2,5.33944753]
[1741947254554,3.7828,1896.4,1896.3,0.06564707]
[1741947255037,3.0,1896.4,1896.3,0.06564707]
[1741947255350,3.0,1896.4,1896.3,5.33906707]
[1741947255649,3.0,1896.4,1896.3,6.12766707]
[1741947256526,3.0,1896.4,1896.3,5.33906707]
[1741947257255,3.0,1896.4,1896.3,0.06564707]
[1741947257757,3.0,1896.4,1896.3,5.33906707]
[1741947257929,3.0,1896.4,1896.3,0.06564707]
[1741947259057,5.018,1896.5,1896.3,5.33906707]
[1741947259873,5.018,1896.5,1896.3,10.61234707]
[1741947260261,5.018,1896.5,1896.3,5.33892707]
[1741947261675,5.018,1896.5,1896.3,10.61225707]
[1741947261875,5.018,1896.5,1896.3,5.33892707]
[1741947262076,5.018,1896.5,1896.3,5.33891707]
[1741947262477,5.018,1896.5,1896.3,10.61215707]
[1741947262664,5.018,1896.5,1896.3,10.61219707]
[1741947263064,5.018,1896.5,1896.3,5.33888707]
[1741947263778,5.018,1896.5,1896.3,10.61211707]
[1741947264355,5.018,1896.5,1896.4,5.27314]
[1741947264550,5.018,1896.5,1896.4,5.33864662]
[1741947267280,5.018,1896.5,1896.4,6.09214662]
[1741947268496,9.02,1896.6,1896.5,5.27287]
[1741947268702,7.998,1896.6,1896.5,5.27287]
[1741947269002,7.998,1896.6,1896.5,5.33823619]
[1741947275000,0.38845616,1896.8,1896.7,5.27231]
[1741947275294,7.998,1896.8,1896.7,5.27231]
[1741947275495,7.998,1896.8,1896.7,5.33732776]
[1741947276496,7.998,1896.8,1896.7,0.06501776]
[1741947276881,7.998,1896.8,1896.7,5.27231]
[1741947277082,7.998,1896.8,1896.7,5.3371993]
[1741947281771,7.997,1896.8,1896.7,5.3371993]
[1741947282215,7.997,1896.8,1896.7,0.0648893]
[1741947282385,17.27623347,1896.8,1896.7,0.0648893]
[1741947282591,17.27623347,1896.8,1896.4,5.27302]
[1741947282787,1.79886229,1896.6,1896.4,5.27302]
[1741947283018,5.27231,1896.7,1896.3,5.27338]
[1741947283019,2.56536229,1896.5,1896.3,5.27338]
[1741947283185,4.997,1896.4,1896.3,5.27338]
[1741947287414,4.997,1896.4,1896.2,5.27367]
[1741947287595,4.997,1896.4,1896.2,5.27354]
[1741947288011,4.997,1896.4,1896.2,10.54709]
[1741947288314,4.997,1896.4,1896.2,5.27354]
[1741947289196,4.997,1896.4,1896.2,10.54708]
[1741947289414,4.997,1896.4,1896.2,5.27354]
[1741947290904,4.997,1896.4,1896.0,6.08181]
[1741947291115,10.2703,1896.4,1896.0,10.54821]
[1741947291596,11.901286,1896.4,1896.0,10.54821]
[1741947291794,0.7553,1896.3,1895.9,5.2745]
[1741947292111,2.99906129,1896.2,1895.9,5.2745]
[1741947292314,2.99906129,1896.2,1895.7,0.7574]
[1741947292526,3.7553,1896.3,1896.1,5.27398]
[1741947292698,5.69553473,1896.3,1895.8,5.27481]
[1741947292885,14.30244,1896.3,1895.9,5.27447]
[1741947293088,9.02882,1896.3,1895.9,5.27447]
[1741947293288,9.02882,1896.3,1896.0,0.06620375]
[1741947295429,3.7553,1896.3,1896.0,5.34037375]
[1741947296722,3.7553,1896.3,1896.0,5.34036375]
[1741947298424,9.02882,1896.3,1896.0,0.06620375]
[1741947298824,3.7553,1896.3,1896.0,5.27423]
[1741947299047,3.7553,1896.3,1896.1,5.2739]
[1741947299225,3.7553,1896.3,1896.1,5.34027435]
[1741947300066,3.0,1896.3,1896.2,5.2737]
[1741947300226,7.998,1896.3,1896.1,5.34019435]
[1741947300426,7.998,1896.3,1896.2,0.06623387]
[1741947301326,7.998,1896.3,1896.0,5.27416]
[1741947301327,3.0,1896.3,1896.0,10.54826]
[1741947301527,4.998,1896.2,1896.0,10.54819]
[1741947302262,4.998,1896.2,1896.1,5.27398]
[1741947304878,4.998,1896.2,1895.9,6.07024]
[1741947305191,5.8156,1896.2,1895.9,10.54869]
[1741947306193,5.8156,1896.2,1895.9,5.27434]
[1741947306397,5.8156,1896.2,1895.9,10.54871]
[1741947306688,5.8156,1896.2,1896.0,5.27423]
[1741947307720,5.8156,1896.2,1896.0,10.54835]
[1741947308116,4.998,1896.2,1896.1,5.27398]
[1741947308270,3.0,1896.3,1896.2,5.2737]
[1741947308472,9.79769488,1896.3,1896.1,5.27398]
[1741947309715,7.998,1896.3,1896.1,5.27398]
[1741947310404,7.998,1896.3,1896.1,10.54781]
[1741947311608,3.0,1896.3,1896.2,5.2737]
[1741947311793,6.02,1896.4,1896.3,5.27342]
[1741947311997,6.02,1896.4,1896.3,6.07762]
[1741947311998,11.018,1896.4,1896.3,6.07762]
[1741947312612,6.02,1896.4,1896.3,6.07762]
[1741947312946,20.449,1896.6,1896.5,5.27287]
[1741947312947,22.447,1896.6,1896.5,5.27287]
[1741947313150,22.447,1896.6,1896.5,7.077562]
[1741947313307,22.447,1896.6,1896.5,7.14323926]
[1741947314500,5.39941179,1896.9,1896.8,5.27203]
[1741947314701,5.39941179,1896.9,1896.8,5.33705616]
[1741947315745,5.39941179,1896.9,1896.8,0.06502616]
[1741947315924,5.39941179,1896.9,1896.8,5.33705616]
[1741947316103,4.998,1896.9,1896.8,5.33705616]
[1741947317345,4.998,1896.9,1896.8,0.06502616]
[1741947317550,7.99590137,1896.9,1896.8,0.06502616]
[1741947317708,7.99590137,1896.9,1896.6,5.27244]
[1741947318042,7.99590137,1896.9,1896.7,0.06467971]
[1741947318246,7.99590137,1896.9,1896.7,5.33697971]
[1741947318547,7.99590137,1896.9,1896.7,5.2723]
[1741947318705,7.99590137,1896.9,1896.8,0.06453932]
[1741947318909,4.998,1896.9,1896.8,0.06453932]
[1741947319246,4.998,1896.9,1896.8,5.33656932]
[1741947321492,4.998,1896.9,1896.8,0.06453932]
[1741947321681,4.998,1896.9,1896.8,5.33656932]
[1741947322790,9.41707841,1897.0,1896.8,5.33656932]
[1741947322963,4.997,1896.9,1896.8,5.33656932]
[1741947324283,9.41707841,1897.0,1896.8,6.12166932]
[1741947324488,4.997,1896.9,1896.8,6.12166932]
[1741947324693,4.997,1896.9,1896.8,7.26081525]
[1741947325595,11.017,1897.0,1896.9,5.27175]
[1741947325954,6.02,1897.0,1896.9,5.33606784]
[1741947326159,11.017,1897.0,1896.9,5.33606784]
[1741947326355,6.02,1897.0,1896.9,5.33606784]
[1741947326586,6.02,1897.0,1896.9,6.58930222]
[1741947326755,17.449,1897.3,1897.2,5.27092]
[1741947326952,22.446,1897.3,1897.2,5.27092]
[1741947327199,25.446,1897.3,1897.2,5.3348168]
[1741947327433,25.85142575,1897.3,1897.2,5.3348168]
[1741947328227,25.85142575,1897.3,1897.2,5.27092]
[1741947328737,25.85142575,1897.3,1897.2,5.3348168]
[1741947329112,25.85142575,1897.3,1897.2,0.0638968]
[1741947329638,25.85142575,1897.3,1897.1,6.03692]
[1741947329814,25.85142575,1897.3,1897.2,0.0638968]
[1741947330133,25.85142575,1897.3,1897.1,6.03692]
[1741947330335,25.85142575,1897.3,1897.2,0.0638968]
[1741947330538,25.85142575,1897.3,1897.1,6.03692]
[1741947330833,25.85142575,1897.3,1897.2,0.0638968]
[1741947331144,25.85142575,1897.3,1897.1,6.03692]
[1741947331351,32.0364697,1897.3,1897.2,0.06365352]
[1741947331505,44.1564097,1897.3,1897.2,0.06365352]
[1741947331709,9.1006,1897.1,1896.7,5.27223]
[1741947331949,2.99790137,1897.0,1896.7,5.27223]
[1741947332110,4.996,1896.9,1896.8,0.06410004]
[1741947332507,4.996,1896.9,1896.8,5.33613004]
[1741947333140,4.996,1896.9,1896.8,0.06410004]
[1741947335549,4.996,1896.9,1896.8,5.33613004]
[1741947337562,3.0,1897.1,1896.8,10.60816004]
[1741947337716,24.64592575,1897.3,1896.8,1.12491604]
[1741947337921,7.996,1897.2,1897.0,5.27121]
[1741947338255,16.26482137,1897.2,1897.1,0.06382088]
[1741947338683,16.26482137,1897.2,1896.9,5.27174]
[1741947338989,16.26482137,1897.2,1897.0,0.06396123]
[1741947339377,9.0615,1897.1,1897.0,0.06396123]
[1741947339552,9.0615,1897.1,1896.6,5.27238]
[1741947339553,3.0,1896.9,1896.6,5.27238]
[1741947339889,3.0,1896.9,1896.4,0.7611]
[1741947339890,8.81660137,1896.8,1896.4,0.7611]
[1741947340187,8.27052137,1896.6,1896.2,7.143903]
[1741947340391,6.09572,1896.5,1896.1,5.27384]
[1741947340601,4.996,1896.4,1896.1,10.54764]
[1741947340754,4.996,1896.4,1896.1,11.683954]
[1741947341148,4.996,1896.4,1896.2,5.27368]
[1741947341350,4.996,1896.4,1896.3,5.27342]
[1741947341597,4.996,1896.4,1896.3,6.09052]
[1741947343095,4.996,1896.4,1896.3,6.15610621]
[1741947343266,4.996,1896.4,1896.3,7.29906683]
[1741947343792,7.996,1896.7,1896.5,5.27285]
[1741947344177,8.7674,1896.7,1896.4,5.27309]
[1741947344367,8.7674,1896.7,1896.6,0.06509054]
[1741947344565,7.996,1896.7,1896.5,10.54552]
[1741947344880,7.996,1896.7,1896.6,0.06509054]
[1741947345916,4.996,1896.7,1896.6,0.06509054]
[1741947347214,9.66383606,1896.7,1896.6,0.06509054]
[1741947347426,8.8245,1896.7,1896.4,5.27301]
[1741947347587,8.8245,1896.7,1896.6,0.06504322]
[1741947347789,8.8245,1896.7,1896.4,5.27296]
[1741947347790,3.0,1896.6,1896.4,10.54599]
[1741947348515,3.0,1896.6,1896.4,5.27296]
[1741947349090,3.0,1896.6,1896.4,6.08476]
[1741947349289,3.0,1896.7,1896.6,5.27259]
[1741947349587,7.996,1896.7,1896.6,5.27259]
[1741947351089,4.996,1896.7,1896.5,5.27279]
[1741947351299,5.7852,1896.7,1896.3,10.54671]
[1741947351489,5.7852,1896.7,1896.4,5.27312]
[1741947351691,11.8052,1896.7,1896.2,6.03769]
[1741947351987,11.8052,1896.7,1895.9,5.27451]
[1741947351988,5.27355,1896.3,1895.9,5.27451]
[1741947352188,5.27399,1896.1,1895.8,5.27477]